bitfinex/quotes_ETHUSD_20260103
["timestamp","ask_amount","ask_price","bid_price","bid_amount"]
[1767473908754,0.002,3113.3,3112.8,5.61999395]
[1767473910730,0.002,3113.3,3112.9,2.25483757]
[1767473912719,0.002,3113.3,3112.9,5.4672007]
[1767473913644,0.002,3113.3,3113.0,2.32509132]
[1767473915372,0.00080048,3113.7,3113.1,2.32509132]
[1767473915547,0.00080048,3113.7,3113.2,3.20006195]
[1767473916221,0.002,3113.3,3113.2,3.20006195]
[1767473916421,0.00080048,3113.7,3113.2,3.20006195]
[1767473917749,0.00080048,3113.7,3113.3,2.32509132]
[1767473918221,0.00080048,3113.7,3113.2,4.08703732]
[1767473918425,0.00080048,3113.7,3113.3,0.40870373]
[1767473922660,0.00080048,3113.7,3113.3,3.62071442]
[1767473923059,0.00080048,3113.7,3113.3,0.40870373]
[1767473923560,0.00280048,3113.7,3113.3,0.40870373]
[1767473927374,0.00280048,3113.7,3113.3,3.62071698]
[1767473927663,0.00280048,3113.7,3113.4,0.59458083]
[1767473927873,0.00280048,3113.7,3113.3,3.62071698]
[1767473931355,0.002,3113.9,3113.4,2.32509132]
[1767473931967,0.002,3113.7,3113.4,2.32509132]
[1767473932547,0.00063507,3113.7,3113.4,2.32509132]
[1767473932777,0.00063507,3113.7,3113.5,3.21181949]
[1767473932978,0.00063507,3113.7,3113.6,0.87488085]
[1767473935585,0.00063507,3113.7,3113.6,4.08659719]
[1767473941874,0.00063507,3113.7,3113.6,0.87488085]
[1767473946002,0.00063507,3113.7,3113.5,3.21177265]
[1767473947100,0.00063507,3113.7,3113.4,3.21192265]
[1767473952981,0.00063507,3113.7,3113.4,6.4238453]
[1767473962216,0.00063507,3113.7,3113.4,6.4248453]
[1767473970420,2.3254631,3113.7,3113.4,0.001]
[1767473970715,2.87935254,3113.7,3113.4,0.001]
[1767473971621,2.3254631,3113.7,3113.4,0.001]
[1767474006858,2.3732519,3113.6,3113.4,0.001]
[1767474007735,0.00063507,3113.7,3113.4,0.001]
[1767474007936,0.002,3113.9,3113.4,2.41226398]
[1767474008635,0.002,3113.9,3113.5,5.62308347]
[1767474008850,0.002,3113.9,3113.6,0.56240835]
[1767474010583,0.002,3113.9,3113.6,3.77409893]
[1767474020049,0.002,3113.9,3113.6,3.77209893]
[1767474029807,0.002,3113.9,3113.6,0.56040835]
[1767474030105,2.26381078,3113.9,3113.4,0.001]
[1767474030264,2.26181078,3113.7,3113.3,0.00180056]
[1767474033493,2.26181078,3113.6,3113.3,0.00180056]
[1767474034190,2.8091574,3113.6,3113.3,0.00180056]
[1767474035604,2.26181078,3113.4,3113.3,0.00180056]
[1767474037201,2.26181078,3113.4,3113.0,0.001]
[1767474038305,5.47374723,3113.4,3113.0,0.001]
[1767474038602,3.21193645,3113.4,3113.0,0.001]
[1767474038775,2.58300443,3113.3,3113.0,0.001]
[1767474041696,5.79503683,3113.3,3113.0,0.001]
[1767474042691,2.26506146,3113.2,3113.0,0.001]
[1767474045702,5.47720294,3113.2,3113.0,0.001]
[1767474046392,2.26506146,3113.1,3113.0,0.001]
[1767474046584,2.26506146,3113.0,3112.7,0.00080072]
[1767474052486,5.4774051,3113.0,3112.7,0.00080072]
[1767474052789,2.26506146,3112.9,3112.7,0.00080072]
[1767474054016,5.47752992,3112.9,3112.6,0.001]
[1767474054410,2.26506146,3112.8,3112.6,0.001]
[1767474059022,5.47761671,3112.8,3112.6,0.001]
[1767474059318,6.31188742,3112.8,3112.6,0.001]
[1767474059921,2.27938506,3112.7,3112.6,0.001]
[1767474062218,0.83427071,3112.8,3112.6,0.001]
[1767474062385,5.4918677,3112.9,3112.6,0.001]
[1767474064035,2.27938506,3112.8,3112.6,0.001]
[1767474066420,5.49376602,3113.0,3112.6,0.001]
[1767474069711,2.27938506,3112.9,3112.6,0.001]
[1767474070619,3.21254176,3112.8,3112.6,0.001]
[1767474070819,5.49192682,3112.8,3112.6,0.001]
[1767474071017,2.83259329,3112.7,3112.6,0.001]
[1767474071316,2.83259329,3112.7,3112.3,0.0018008]
[1767474075446,0.55320823,3112.7,3112.3,0.0018008]
[1767474075751,3.21454176,3112.8,3112.3,0.0018008]
[1767474075910,0.0008008,3112.7,3112.2,3.0159619]
[1767474076846,0.0008008,3112.7,3112.2,8.64166954]
[1767474077650,0.0008008,3112.7,3112.3,2.41254654]
[1767474080241,0.0008008,3112.7,3112.2,3.0159619]
[1767474082567,0.0008008,3112.7,3112.3,0.001]
[1767474085560,0.0008008,3112.7,3112.3,2.65500119]
[1767474088163,0.0008008,3112.7,3112.4,5.62550117]
[1767474094170,0.0008008,3112.7,3112.3,3.21402028]
[1767474096984,2.317595,3112.7,3112.3,3.21402028]
[1767474097485,2.317595,3112.7,3112.3,0.001]
[1767474098089,2.319595,3112.7,3112.3,0.001]
[1767474099381,2.3167942,3112.6,3112.3,0.001]
[1767474100178,3.2128514,3112.5,3112.3,0.001]
[1767474100475,5.5296456,3112.5,3112.3,0.001]
[1767474100671,2.3167942,3112.4,3112.3,0.001]
[1767474101181,2.3167942,3112.4,3112.0,0.001]
[1767474101481,2.3167942,3112.2,3112.0,0.001]
[1767474101682,2.3167942,3112.2,3111.9,0.0018008]
[1767474103380,5.52995806,3112.2,3111.9,0.0018008]
[1767474104380,2.3167942,3112.1,3111.9,0.0018008]
[1767474106977,2.3167942,3112.0,3111.7,0.001]
[1767474107984,5.53016774,3112.0,3111.7,0.001]
[1767474108187,6.40450089,3112.0,3111.7,0.001]
[1767474108684,2.3167942,3111.9,3111.7,0.001]
[1767474109967,2.3167942,3111.9,3111.5,0.00180056]
[1767474110162,2.3167942,3111.8,3111.5,0.00180056]
[1767474115573,5.53042061,3111.8,3111.5,0.00180056]
[1767474115781,6.49223582,3111.8,3111.5,0.00180056]
[1767474120091,2.2799949,3111.7,3111.5,0.00180056]
[1767474123689,5.49367749,3111.7,3111.5,0.00180056]
[1767474124184,2.2799949,3111.7,3111.5,0.00180056]
[1767474124793,5.49367684,3111.7,3111.5,0.00180056]
[1767474125299,2.2799949,3111.7,3111.5,0.00180056]
[1767474127674,5.4936822,3111.7,3111.3,0.001]
[1767474127887,6.46078002,3111.7,3111.3,0.001]
[1767474129209,2.2799949,3111.7,3111.3,0.001]
[1767474129397,2.28279546,3111.9,3111.3,2.43175735]
[1767474129599,0.00280056,3111.9,3111.3,2.43175735]
[1767474131721,0.00280056,3111.9,3111.3,5.64575672]
[1767474140020,2.28279546,3111.9,3111.3,5.64575672]
[1767474141230,2.28279546,3111.9,3111.3,2.43175735]
[1767474141418,2.51107501,3111.9,3111.3,3.2150735]
[1767474146220,5.72459495,3111.9,3111.3,0.001]
[1767474150136,2.51107501,3111.9,3111.3,0.001]
[1767474150933,5.72456034,3111.9,3111.3,0.001]
[1767474155541,2.38332827,3111.8,3111.3,0.001]
[1767474157615,5.59690549,3111.8,3111.3,0.001]
[1767474157817,6.50104121,3111.8,3111.3,0.001]
[1767474159741,2.38332827,3111.4,3110.9,0.001]
[1767474162425,2.38332827,3111.4,3111.3,0.001]
[1767474162625,5.59732281,3111.4,3110.9,0.001]
[1767474163227,2.38332827,3111.4,3110.9,0.001]
[1767474168150,5.59732669,3111.4,3110.9,0.001]
[1767474172960,2.38332827,3111.3,3110.9,0.001]
[1767474175057,0.00080048,3111.1,3110.7,5.59409299]
[1767474175228,0.00080048,3111.1,3110.7,3.21466963]
[1767474176059,0.00080048,3111.1,3110.9,0.001]
[1767474181463,0.00080048,3111.6,3111.1,2.44566921]
[1767474182258,0.00080048,3111.6,3111.1,5.65995628]
[1767474182451,0.002,3111.4,3111.1,5.65995628]
[1767474182649,0.002,3111.4,3111.1,6.54750145]
[1767474182855,0.002,3111.4,3111.2,2.44566921]
[1767474185237,0.00080048,3111.6,3111.3,5.65975978]
[1767474185565,0.00280056,3111.9,3111.4,2.44566921]
[1767474187766,0.00280056,3111.9,3111.6,2.44566921]
[1767474189746,0.00280056,3111.9,3111.7,5.65934662]
[1767474192148,0.00280056,3111.9,3111.7,2.44566921]
[1767474192574,0.00280056,3111.9,3111.6,3.21373286]
[1767474193949,0.00280056,3111.9,3111.6,5.65940207]
[1767474211511,0.00280056,3111.9,3111.6,3.21373286]
[1767474215213,0.00280056,3111.9,3111.5,3.21488397]
[1767474221333,0.00280056,3111.9,3111.5,6.42876794]
[1767474222200,0.0008008,3112.3,3111.6,2.40175398]
[1767474223030,0.0008008,3112.3,3111.7,3.21367741]
[1767474223328,2.35555061,3112.3,3111.7,3.21367741]
[1767474224832,2.35555061,3112.3,3111.7,6.42735482]
[1767474225740,2.35755061,3112.3,3111.7,6.42735482]
[1767474226039,2.35755061,3112.3,3111.7,7.24287558]
[1767474241557,2.35755061,3112.3,3111.7,4.02919817]
[1767474243441,2.35755061,3112.3,3111.7,7.24287558]
[1767474243648,0.0028008,3112.3,3111.7,9.55280853]
[1767474244046,0.0028008,3112.3,3111.8,2.30993295]
[1767474245067,0.0028008,3112.3,3111.9,3.21347086]
[1767474251282,0.0028008,3112.3,3111.9,6.47866401]
[1767474252268,0.0028008,3112.3,3111.9,4.16873106]
[1767474254364,0.0028008,3112.3,3111.9,4.16973106]
[1767474288888,0.0028008,3112.3,3111.9,3.21447086]
[1767474290317,2.47148538,3112.3,3111.9,0.001]
[1767474302229,2.4180684,3112.2,3111.6,3.21475143]
[1767474302533,2.41886904,3111.9,3111.1,3.21526537]
[1767474303222,2.41886904,3111.9,3111.2,3.21499424]
[1767474303730,2.4180684,3111.7,3111.2,0.00080056]
[1767474306535,2.4180684,3111.6,3111.2,0.00080056]
[1767474308733,2.4180684,3111.5,3111.2,0.00080056]
[1767474313910,2.4180684,3111.8,3111.2,0.00080056]
[1767474314110,2.4180684,3111.8,3111.2,5.52660595]
[1767474318838,0.00080064,3111.9,3111.2,8.74079983]
[1767474319040,2.41886904,3111.9,3111.2,8.74079983]
[1767474319241,3.38772483,3111.9,3111.2,8.74079983]
[1767474321949,3.38972483,3111.9,3111.2,8.74079983]
[1767474324365,6.60327578,3111.9,3111.2,5.52660595]
[1767474324852,2.4180684,3111.8,3111.2,5.52660595]
[1767474329630,5.63164318,3111.8,3111.2,0.00080056]
[1767474331057,2.4180684,3111.8,3111.2,0.00080056]
[1767474336457,2.4180684,3111.8,3111.2,6.42918832]
[1767474336633,2.4180684,3111.8,3111.2,8.85088092]
[1767474337262,2.4180684,3111.8,3111.2,5.63668704]
[1767474340363,2.4180684,3111.8,3111.2,8.85088092]
[1767474341249,2.4180684,3111.8,3111.2,5.63668704]
[1767474347159,2.4200684,3111.8,3111.2,5.63668704]
[1767474350281,0.002,3111.8,3111.3,2.4216926]
[1767474350482,0.32159522,3112.2,3111.5,2.42249332]
[1767474350483,2.42975235,3112.2,3111.5,2.42249332]
[1767474351180,2.42975235,3112.2,3111.5,0.00080072]
[1767474351583,2.42975235,3112.2,3111.5,2.42249332]
[1767474351784,2.42975235,3112.6,3111.7,2.4216926]
[1767474351999,2.42975235,3112.6,3111.8,8.84884086]
[1767474352357,2.42975235,3112.5,3111.8,8.84884086]
[1767474352865,2.42975235,3112.5,3111.9,2.42249348]
[1767474353281,2.43255315,3112.7,3111.9,2.42249348]
[1767474354281,2.43255315,3112.7,3112.1,2.4216926]
[1767474354489,0.002,3113.0,3112.2,0.88484278]
[1767474354654,2.43175235,3113.0,3112.3,3.26549348]
[1767474356296,2.43175235,3113.0,3112.4,6.42590926]
[1767474356992,2.43175235,3113.0,3112.4,8.84760186]
[1767474357290,0.002,3113.0,3112.5,0.96914027]
[1767474357982,1e-08,3113.1,3112.5,3.39083287]
[1767474358181,3.2137279,3113.6,3112.9,3.21243856]
[1767474358182,2.42975235,3113.5,3112.9,3.21243856]
[1767474358394,2.42975235,3113.5,3112.9,6.42487712]
[1767474360191,2.42975235,3113.5,3112.9,3.21243856]
[1767474360393,2.42975235,3113.5,3112.9,6.42487712]
[1767474361099,0.002,3113.0,3112.9,3.21243856]
[1767474361429,2.42975235,3113.5,3112.9,7.30962507]
[1767474362702,2.37975235,3113.5,3112.9,7.30962507]
[1767474363805,0.002,3113.6,3112.9,9.64014939]
[1767474364104,0.002,3113.6,3113.0,2.33052432]
[1767474364701,0.002,3113.6,3113.1,8.75498868]
[1767474364908,0.002,3113.6,3113.2,0.87549887]
[1767474365217,0.00080056,3113.7,3113.2,0.87549887]
[1767474365373,0.00080056,3113.7,3113.2,3.20602319]
[1767474365704,0.0028004,3114.0,3113.3,2.33132496]
[1767474366206,2.26715328,3114.0,3113.3,0.84380064]
[1767474366585,2.26435288,3113.9,3113.3,3.21282646]
[1767474367171,2.26435288,3113.9,3113.3,0.00080064]
[1767474367409,2.81239982,3113.9,3113.3,0.00080064]
[1767474367706,2.21435288,3113.6,3113.3,0.00080064]
[1767474368505,2.21435288,3113.6,3112.8,3.21247695]
[1767474368704,2.26435288,3113.5,3112.8,3.21247695]
[1767474369930,2.26435288,3113.5,3112.7,3.21343]
[1767474370400,2.26435288,3113.5,3112.7,0.0008008]
[1767474370921,3.21192265,3113.4,3112.7,0.0008008]
[1767474371082,2.26435288,3113.3,3112.7,0.0008008]
[1767474374209,0.0008008,3113.1,3112.6,6.37711615]
[1767474374716,0.0008008,3113.1,3112.6,6.37811615]
[1767474375098,5.42721031,3113.3,3112.6,6.37811615]
[1767474375417,5.42721031,3113.3,3112.7,0.00080088]
[1767474377021,2.26435288,3113.2,3112.7,0.00080088]
[1767474379605,0.00280064,3113.7,3112.7,2.3313252]
[1767474379822,2.26435288,3113.5,3112.7,2.3313252]
[1767474382208,2.26435288,3113.3,3112.7,0.00080088]
[1767474383141,3.21212899,3113.2,3112.7,0.00080088]
[1767474384727,5.47641579,3113.3,3112.7,0.00080088]
[1767474384927,2.26435288,3113.2,3112.7,0.00080088]
[1767474385131,2.26715352,3113.7,3112.9,2.33052432]
[1767474385336,5.47884771,3113.7,3112.9,2.33052432]
[1767474385538,2.26435288,3113.6,3112.9,2.33052432]
[1767474387035,2.26435288,3113.6,3112.7,0.00080088]
[1767474387211,2.26435288,3113.0,3112.7,0.00080088]
[1767474387401,2.81201139,3113.0,3112.7,0.00080088]
[1767474387733,2.81201139,3113.0,3111.8,2.33052432]
[1767474387938,2.81201139,3113.0,3112.0,5.54388275]
[1767474388511,2.81201139,3113.0,3112.6,0.001]
[1767474388919,2.81201139,3113.0,3112.0,5.54388275]
[1767474389520,2.81201139,3113.0,3112.3,2.3313252]
[1767474389723,3.21240269,3113.0,3112.3,2.3313252]
[1767474391815,2.4396111,3113.0,3112.3,0.00080088]
[1767474394346,5.68627194,3112.9,3112.3,0.00080088]
[1767474395346,2.47383338,3112.8,3112.3,0.00080088]
[1767474395549,2.47383338,3112.7,3112.3,0.00080088]
[1767474396521,5.68648808,3112.7,3112.3,0.00180088]
[1767474404224,2.47383338,3112.6,3112.3,0.00180088]
[1767474405627,0.002,3112.8,3112.3,2.35196663]
[1767474406758,2.47583338,3112.8,3112.3,0.00180088]
[1767474406947,0.24758334,3112.7,3112.3,0.00180088]
[1767474407328,2.47383338,3112.6,3112.3,0.00180088]
[1767474407630,0.24838422,3112.7,3112.1,2.35016575]
[1767474407830,0.00080088,3112.7,3112.1,2.35016575]
[1767474408536,2.47463426,3112.7,3111.9,0.00080088]
[1767474409061,2.47463426,3112.7,3111.9,2.35096663]
[1767474411059,5.68658156,3112.6,3111.9,2.35096663]
[1767474411462,5.68658156,3112.6,3111.9,2.35196663]
[1767474412062,8.89932974,3112.6,3111.9,2.35196663]
[1767474412454,9.7895428,3112.6,3111.9,2.35196663]
[1767474412934,2.47383338,3112.5,3111.9,2.35196663]
[1767474413561,3.21295463,3112.4,3111.9,2.35196663]
[1767474414762,2.47383338,3112.3,3111.9,0.00180088]
[1767474414930,0.88997426,3112.2,3111.9,0.00180088]
[1767474415131,2.47383338,3112.3,3111.9,0.00180088]
[1767474418069,3.2131611,3112.2,3111.9,0.00180088]
[1767474426674,5.6869329,3112.3,3111.9,0.00180088]
[1767474426974,3.21309952,3112.3,3111.9,0.00180088]
[1767474427778,3.21295463,3112.4,3111.9,0.00180088]
[1767474427977,4.10494847,3112.4,3111.9,0.00180088]
[1767474430381,4.10494847,3112.4,3111.9,2.436096]
[1767474432348,6.42809082,3112.7,3111.9,2.436096]
[1767474432769,8.92220696,3112.7,3111.9,2.436096]
[1767474435494,0.00280088,3112.7,3112.0,2.43429512]
[1767474435700,0.00280088,3112.7,3112.2,2.43429512]
[1767474463722,0.00280088,3112.7,3112.2,5.64744695]
[1767474483957,0.00280088,3112.7,3112.2,2.43429512]
[1767474485352,0.00280088,3112.7,3112.2,5.64745481]
[1767474490360,0.00280088,3112.7,3112.2,2.43429512]
[1767474494159,0.00280088,3112.7,3112.2,5.64745399]
[1767474495861,0.00280088,3112.7,3112.2,2.43429512]
[1767474496359,0.87511265,3112.7,3112.2,2.43229513]
[1767474496613,3.26319514,3112.7,3112.1,3.21422046]
[1767474497834,3.26319514,3112.7,3112.1,5.53023744]
[1767474498867,3.26319514,3112.7,3112.1,8.74350179]
[1767474499046,2.39088337,3112.7,3112.1,8.74350179]
[1767474500059,2.39088337,3112.7,3112.1,5.53023744]
[1767474519861,5.60354945,3112.7,3112.1,5.53023744]
[1767474522709,2.39088337,3112.7,3112.1,5.53023744]
[1767474539590,2.39088337,3112.7,3112.1,8.74350179]
[1767474539806,2.39088337,3112.7,3112.1,9.70243206]
[1767474540741,0.00280088,3112.7,3112.1,9.70243206]
[1767474541737,0.00280088,3112.7,3112.2,2.31088079]
[1767474546535,0.00280088,3112.7,3112.2,5.52401028]
[1767474548241,0.00280088,3112.7,3112.2,3.21312949]
[1767474548604,0.00280088,3112.7,3112.1,3.21422095]
[1767474550642,0.00280088,3112.7,3112.1,2.31188079]
[1767474551745,0.00280088,3112.7,3112.1,5.52504945]
[1767474553033,0.00280088,3112.7,3112.1,8.7383138]
[1767474559642,2.34327944,3112.6,3112.1,0.001]
[1767474559809,0.00280088,3112.7,3112.1,2.31188079]
[1767474562604,0.00280088,3112.7,3112.1,5.52511291]
[1767474562809,2.34608032,3112.7,3112.1,5.52511291]
[1767474564745,2.34608032,3112.7,3112.1,0.001]
[1767474565039,2.34608032,3112.7,3112.0,6.42773279]
[1767474566943,0.00280088,3112.7,3112.1,2.31088079]
[1767474569417,0.00280088,3112.7,3112.2,3.2131611]
[1767474571336,0.00280088,3112.7,3112.2,2.31035241]
[1767474572643,0.00280088,3112.7,3112.0,6.4277352]
[1767474572942,2.39144563,3112.7,3112.0,7.15498881]
[1767474574138,0.00280088,3112.7,3112.0,7.15498881]
[1767474574512,2.03776033,3113.0,3112.3,0.00080096]
[1767474574918,0.00080088,3113.1,3112.3,2.31115337]
[1767474575651,0.00080088,3113.1,3112.5,2.31035241]
[1767474576525,0.00280088,3113.1,3112.5,2.31035241]
[1767474577919,0.00280088,3113.1,3112.5,6.33330553]
[1767474579331,0.00280088,3113.1,3112.6,2.31035241]
[1767474594982,2.03776033,3113.0,3112.3,0.00180096]
[1767474595152,0.00280088,3113.1,3112.3,2.31215337]
[1767474598983,0.00280088,3113.1,3112.5,2.31035241]
[1767474599285,0.84929637,3113.1,3112.5,2.31035241]
[1767474601200,3.21233536,3113.0,3112.5,2.31035241]
[1767474603885,3.21506979,3113.1,3112.5,2.31035241]
[1767474604466,3.21506979,3113.1,3112.5,2.31135241]
[1767474604787,3.21506979,3113.1,3112.5,5.52417615]
[1767474607992,4.06155623,3113.1,3112.5,5.52417615]
[1767474609205,4.06155623,3113.1,3112.5,2.31135241]
[1767474610890,7.27382514,3113.1,3112.5,2.31135241]
[1767474611059,9.31158547,3113.1,3112.5,2.31135241]
[1767474612689,6.09931656,3113.1,3112.5,2.31135241]
[1767474614593,4.14353713,3113.0,3112.5,0.001]
[1767474614791,2.03776033,3112.6,3112.0,0.001]
[1767474615297,2.03776033,3112.6,3112.0,2.27631812]
[1767474616378,0.00080096,3112.7,3112.0,2.27631812]
[1767474616601,3.21274818,3112.6,3112.0,2.27631812]
[1767474617370,5.25050851,3112.6,3112.0,2.27631812]
[1767474619082,5.25050851,3112.6,3112.0,0.001]
[1767474619477,2.03776033,3112.6,3112.0,2.27631812]
[1767474620595,5.25054789,3112.6,3112.0,2.27631812]
[1767474623097,5.25054789,3112.6,3112.0,5.48965192]
[1767474623303,3.21278756,3112.6,3112.1,2.27531812]
[1767474625291,3.75729186,3112.6,3112.1,2.27531812]
[1767474628404,3.79434938,3112.7,3112.1,2.27531812]
[1767474634524,3.79634938,3112.7,3112.1,2.27531812]
[1767474634884,0.00280096,3112.7,3112.1,5.48855788]
[1767474635086,0.00280096,3112.7,3112.2,5.48758667]
[1767474636215,0.00280096,3112.7,3112.3,2.27443842]
[1767474638213,0.00280096,3112.7,3112.4,2.27443842]
[1767474639316,0.00280096,3112.7,3112.3,2.27443842]
[1767474640713,0.00280096,3112.7,3112.3,5.48749347]
[1767474641020,0.00280096,3112.7,3112.3,2.27443842]
[1767474648331,0.00280096,3112.7,3112.3,5.48747411]
[1767474648631,0.00280096,3112.7,3112.4,2.27443842]
[1767474654837,2.04056129,3112.7,3112.1,3.21421995]
[1767474655017,2.04056129,3112.7,3112.1,4.08470004]
[1767474656808,0.00280096,3112.7,3112.1,4.08470004]
[1767474657141,0.00280096,3112.7,3112.2,2.27443842]
[1767474658641,0.00280096,3112.7,3112.3,2.27543842]
[1767474661772,0.00280096,3112.7,3112.4,2.33978377]
[1767474672354,0.00280096,3112.7,3112.5,2.33978377]
[1767474672555,0.00280096,3112.7,3112.5,2.8951575]
[1767474673355,0.00280088,3113.1,3112.7,2.33978377]
[1767474675244,0.00280088,3113.1,3112.8,2.33978377]
[1767474687572,0.00280088,3113.1,3112.6,2.33978377]
[1767474687775,0.00280088,3113.1,3112.4,2.33978377]
[1767474688072,2.04056121,3113.1,3112.4,2.33978377]
[1767474689184,3.21233536,3113.0,3112.4,2.33978377]
[1767474694375,3.21233536,3113.0,3112.5,2.46075198]
[1767474696986,0.00280088,3113.1,3112.5,2.46175198]
[1767474710903,2.04056121,3113.1,3112.5,0.001]
[1767474713902,5.25009569,3113.0,3112.5,0.001]
[1767474715509,0.00280088,3113.1,3112.5,2.46175198]
[1767474717800,6.42726524,3113.1,3112.5,2.46175198]
[1767474721010,7.2737678,3113.1,3112.5,2.46175198]
[1767474721711,7.2737678,3113.1,3112.5,0.001]
[1767474721712,2.03776033,3113.0,3112.5,0.001]
[1767474722018,2.03776033,3113.0,3112.1,0.001]
[1767474722019,2.07791581,3112.9,3112.1,0.001]
[1767474722193,2.92729961,3113.0,3112.1,0.001]
[1767474722194,2.03856137,3112.7,3112.1,0.001]
[1767474723811,8.46325669,3112.6,3112.1,0.001]
[1767474725917,2.03776033,3112.5,3112.1,0.001]
[1767474726388,2.03776033,3112.5,3112.3,0.001]
[1767474726587,2.03776033,3112.5,3112.1,0.001]
[1767474726991,3.21295463,3112.4,3112.1,0.001]
[1767474731714,5.25061173,3112.5,3112.1,0.001]
[1767474731910,5.96009946,3112.5,3112.1,0.001]
[1767474735905,3.92233913,3112.5,3112.1,0.001]
[1767474742730,3.92233913,3112.5,3112.1,2.25669739]
[1767474756245,3.92433913,3112.5,3112.1,2.25669739]
[1767474760650,5.96209946,3112.5,3112.1,0.001]
[1767474760826,0.88666449,3112.4,3112.0,0.001]
[1767474761015,0.84650256,3112.4,3111.9,0.00180088]
[1767474761640,2.88426289,3112.4,3111.9,0.00180088]
[1767474763939,3.21305786,3112.3,3111.9,0.00180088]
[1767474768235,4.14428542,3112.3,3111.9,0.00180088]
[1767474769755,2.03776033,3112.2,3111.9,0.00180088]
[1767474770865,2.03776033,3112.1,3111.9,0.00180088]
[1767474773658,2.03776033,3112.3,3111.9,0.00180088]
[1767474773845,3.21488045,3112.5,3111.9,2.38981837]
[1767474774056,0.64297215,3112.4,3111.9,2.38981837]
[1767474775469,3.85596688,3112.4,3111.9,2.38981837]
[1767474779672,3.21487751,3112.5,3112.0,2.38801749]
[1767474779859,0.002,3112.5,3112.0,2.38801749]
[1767474798489,0.002,3112.5,3112.0,2.38901749]
[1767474798989,0.002,3112.5,3112.0,2.32331791]
[1767474806208,0.002,3112.5,3111.9,0.00180088]
[1767474806506,3.21305786,3112.3,3111.9,0.00180088]
[1767474808417,5.59739565,3112.3,3111.9,0.00180088]
[1767474809103,3.21305786,3112.3,3111.9,0.00180088]
[1767474812590,3.21305786,3112.3,3111.9,2.42967201]
[1767474818919,2.43856746,3112.2,3111.5,0.00080072]
[1767474819120,1.17512841,3112.1,3111.5,2.42867185]
[1767474819326,0.9639282,3112.2,3111.6,2.42787113]
[1767474819614,3.21385874,3112.3,3111.7,2.42787113]
[1767474819788,3.21385874,3112.3,3111.9,0.001]
[1767474820113,3.21585874,3112.3,3111.9,0.001]
[1767474821788,0.00280088,3112.3,3111.9,0.001]
[1767474822408,0.00280088,3112.3,3111.9,2.67175824]
[1767474823117,0.002,3112.5,3112.3,2.42787113]
[1767474831629,0.002,3112.5,3112.1,2.42787113]
[1767474834133,0.002,3112.5,3112.1,5.64107913]
[1767474834335,0.002,3112.5,3112.2,2.42787113]
[1767474834633,0.002,3112.5,3112.2,2.80903656]
[1767474836405,0.002,3112.5,3112.2,6.02218837]
[1767474839831,0.002,3112.5,3112.2,2.80903656]
[1767474842045,0.002,3112.5,3112.2,6.02218439]
[1767474844937,0.002,3112.5,3112.2,2.80903656]
[1767474852547,0.002,3112.5,3112.3,2.3132152]
[1767474852948,0.002,3112.6,3112.4,2.3132152]
[1767474853143,3.21235428,3113.0,3112.4,2.3132152]
[1767474853533,3.21507147,3113.1,3112.4,2.3132152]
[1767474854750,0.00280088,3113.1,3112.6,2.3132152]
[1767474857336,0.00280088,3113.1,3112.6,5.52592598]
[1767474858363,0.00280088,3113.1,3112.7,2.3132152]
[1767474876159,0.00280088,3113.1,3112.7,2.86591044]
[1767474876874,0.00280088,3113.1,3112.7,6.0785458]
[1767474881577,0.00280088,3113.1,3112.7,2.86591044]
[1767474881780,0.00280088,3113.1,3112.7,6.0785094]
[1767474882072,0.00280088,3113.1,3112.7,2.86591044]
[1767474882479,0.00280088,3113.1,3112.7,6.07853338]
[1767474884194,0.00280088,3113.1,3112.7,2.86591044]
[1767474901703,0.00280088,3113.1,3112.7,0.55269524]
[1767474901904,0.00280088,3113.1,3112.6,3.21372846]
[1767474902201,0.00280088,3113.1,3112.6,5.62879898]
[1767474938326,0.00280088,3113.1,3112.6,2.41607052]
[1767474938532,2.43914073,3113.1,3112.6,0.001]
[1767474939634,0.00280088,3113.1,3112.6,0.001]
[1767474942107,0.00280088,3113.1,3112.6,0.87649142]
[1767474944440,0.00280088,3113.1,3112.6,4.08922289]
[1767474951511,0.00280088,3113.1,3112.7,2.32710847]
[1767474952441,0.002,3113.5,3112.8,2.32710847]
[1767474952635,2.43833985,3113.5,3112.8,2.32710847]
[1767474952824,2.43833985,3113.5,3112.9,2.55989941]
[1767474954143,2.43833985,3113.5,3113.0,3.21233536]
[1767474956010,2.43833985,3113.5,3112.9,5.77229601]
[1767474958954,5.65016626,3113.5,3112.9,5.77229601]
[1767474959253,5.65016626,3113.5,3112.9,2.55989941]
[1767474961851,5.65016626,3113.5,3112.9,0.23279094]
[1767474962084,0.002,3113.5,3112.8,2.38987548]
[1767474970247,0.002,3113.5,3113.0,2.38987548]
[1767474971664,0.002,3113.5,3113.1,3.21223218]
[1767474972659,0.002,3113.5,3113.0,5.60217791]
[1767474973973,0.002,3113.5,3113.0,8.81451327]
[1767474974171,0.002,3113.5,3113.1,0.88145133]
[1767474974352,0.002,3113.5,3113.1,3.27132681]
[1767474976776,0.002,3113.5,3113.2,6.42425798]
[1767474981277,0.002,3113.5,3113.2,8.81413346]
[1767474981665,0.00280064,3113.7,3113.2,6.42425798]
[1767474981858,2.35832057,3115.2,3114.4,2.38987548]
[1767474982175,2.35832057,3115.2,3114.0,0.00080056]
[1767474982176,2.36032057,3114.8,3114.3,0.00080048]
[1767474982477,2.36032057,3114.8,3114.3,1.08186808]
[1767474982679,2.00935887,3115.2,3114.5,2.38987548]
[1767474983048,0.0008,3115.3,3114.5,2.38987548]
[1767474983251,0.0008,3115.3,3114.7,2.38987548]
[1767474985149,0.002,3114.8,3114.7,2.38987548]
[1767474987497,0.002,3114.8,3114.5,3.23187548]
[1767474987691,0.002,3114.8,3114.5,3.36025898]
[1767474988182,0.002,3114.8,3114.5,6.57104501]
[1767474988482,0.002,3114.8,3114.6,0.6571045]
[1767474991085,0.002,3114.8,3114.5,0.1283835]
[1767474992883,0.002,3114.8,3114.5,3.33916663]
[1767474995459,0.002,3114.8,3114.5,0.1283835]
[1767474997074,0.002,3114.8,3114.5,3.33915014]
[1767475012476,0.002,3114.8,3114.5,3.34015014]
[1767475012776,0.002,3114.8,3114.5,4.33607654]
[1767475023327,0.002,3114.8,3114.5,3.34015014]
[1767475027317,0.002,3114.8,3114.5,0.001]
[1767475027507,0.002,3114.8,3114.5,3.21178276]
[1767475027816,0.002,3114.8,3114.5,0.001]
[1767475028515,0.00063555,3114.8,3114.5,0.001]
[1767475028722,2.21115397,3114.8,3114.3,0.00080048]
[1767475029207,2.21115397,3114.8,3114.3,3.21179263]
[1767475029590,2.00999442,3114.8,3114.3,3.21179263]